Cogmind - Beta 12 @@@ ROGUE MODE // 2023.04.30 @ 08:46:28 Player: Inkie Result: Self-destructed Performance ------------- Evolutions (3) 1500 Regions Visited (7) 1400 Robots Destroyed (87) 435 Value Destroyed (2972) 2972 Prototype IDs (7) 140 Alien Tech Used (0) 0 Bonus (2336) 2336 TOTAL SCORE: 8783 Bonus ------- High Alert Combat Kills 44 Follower Combat Kills 1242 Entered Garrisons 200 Used RIF Installer 1000 Friendly Fire -150 Cogmind --------- Core Integrity 553/700 Matter 96/300 Energy 1/100 System Corruption 0% Temperature Cool (0) Movement Treading (224) Ox2 Location -7/Factory Parts ------- > --- POWER (1) -------- (None) > --- PROPULSION (2) --- Treaded Huge Exoskeleton > --- UTILITY (8) ------ Armored Scrap Engine Improved Heat Sink Cooling System High-capacity Storage Unit System Restoration Module > --- WEAPON (2) ------- Mini Assault Cannon Thermal Particle Construct/C > --- INVENTORY (20) --- Improved Ion Engine Light Nuclear Core Light Treads Wheel Improved Cooling System High-capacity Matter Pod (37) Transmission Jammer Powered Armor Hacking Suite Authchip [Device] Authchip [Armor] Authchip [Weapon] Long-range Tractor Beam Improved Assault Rifle Improved Light Cannon Rocket Launcher Rocket Launcher Datajack Remote Datajack Great Axe Peak State ------------ > --- POWER ------------ Light Nuclear Core > --- PROPULSION ------- Treaded Huge Exoskeleton > --- UTILITY ---------- Armored Scrap Engine Improved Heat Sink Cooling System High-capacity Storage Unit Powered Armor Improved Shield Generator System Restoration Module > --- WEAPON ----------- Mini Assault Cannon Precision Grenade Launcher > --- INVENTORY -------- Improved Ion Engine Light Nuclear Core Light Treads Light Treads Wheel High-capacity Matter Pod Transmission Jammer Powered Armor Hacking Suite Authchip [Device] Authchip [Armor] Authchip [Weapon] Long-range Tractor Beam Improved Assault Rifle Improved Assault Rifle Improved Light Cannon Rocket Launcher Datajack Remote Datajack [Rating: 57] Favorites ----------- Power Improved Ion Engine Engine Improved Ion Engine Power Core Light Nuclear Core Propulsion Light Treads Treads Light Treads Leg Improved Aluminum Leg Wheel Wheel Utility High-capacity Storage Unit Device Improved Heat Sink Storage High-capacity Storage Unit Hackware Hacking Suite Protection Light Armor Plating Weapon Improved Light Cannon Energy Cannon Constructs Ballistic Gun Improved Assault Rifle Ballistic Cannon Improved Light Cannon Launcher Precision Grenade Launcher Special Melee Weapon Datajack Build | -11 -10 -10 -9 -9 -9 -9 -7 ------- Run | Jun Mat Min Mat Sto Gar Rec Fac Slots Evolved 6 | . . . 2 . . . 4 Power . | . . . . . . . . Propulsion . | . . . . . . . . Utility 6 | . . . 2 . . . 4 Weapon . | . . . . . . . . Parts Attached 69 | 7 8 . 11 19 5 2 17 Power 5 | 2 1 . . 1 . . 1 Engine 4 | 2 1 . . 1 . . . Core 1 | . . . . . . . 1 Reactor . | . . . . . . . . Propulsion 18 | 2 1 . 5 6 1 1 2 Treads 15 | 2 1 . 3 6 1 1 1 Leg 1 | . . . 1 . . . . Wheel 2 | . . . 1 . . . 1 Hover . | . . . . . . . . Flight . | . . . . . . . . Utility 25 | 1 2 . 3 5 2 1 11 Device 7 | . 1 . 1 . . 1 4 Storage 3 | 1 1 . 1 . . . . Processor . | . . . . . . . . Hackware 4 | . . . . 1 2 . 1 Protection 11 | . . . 1 4 . . 6 Artifact . | . . . . . . . . Weapon 21 | 2 4 . 3 7 2 . 3 Energy Gun . | . . . . . . . . Energy Cannon . | . . . . . . . . Ballistic Gun 13 | 2 4 . 3 3 . . 1 Ballistic Cannon 5 | . . . . 4 1 . . Launcher 2 | . . . . . . . 2 Special Weapon . | . . . . . . . . Impact Weapon . | . . . . . . . . Slashing Weapon . | . . . . . . . . Piercing Weapon . | . . . . . . . . Special Melee Weapon 1 | . . . . . 1 . . Unidentified Prototypes 3 | . . . 1 1 . . 1 Corrupted Parts 1 | . . . . . . . 1 System Corruption 4 | . . . . . . . 4 Parts Lost 22 | . 3 . 4 3 . . 12 Power 4 | . 1 . 1 . . . 2 Propulsion 4 | . 1 . 1 1 . . 1 Utility 9 | . . . . 2 . . 7 Weapon 5 | . 1 . 2 . . . 2 Highest Loss Streak 6 | . 1 . 2 2 . . 6 To Critical Strikes . | . . . . . . . . Average Slot Usage (%) 89 | . 88 85 76 94 100 89 82 Engine 8 | . 13 14 5 6 11 11 4 Treads 18 | . 20 14 17 21 22 21 7 Device 9 | . 12 14 15 4 . 9 17 Storage 10 | . 14 14 11 11 11 11 7 Hackware 7 | . . . . 8 14 12 4 Protection 12 | . . . 4 19 18 1 18 Ballistic Gun 9 | . 27 28 20 12 . . 2 Ballistic Cannon 11 | . . . . 9 20 22 10 Naked Turns . | . . . . . . . . Heaviest Build 74 | 13 19 18 51 63 63 60 74 Greatest Support 43 | 40 40 20 40 43 43 43 40 Greatest Overweight (x) 7 | 3 . . 4 1 1 1 7 Average Overweight (x) 1 | . . . 1 1 1 1 3 Largest Inventory Capacity 20 | 8 10 10 20 20 20 20 20 Average Capacity 18 | 7 8 10 19 20 20 20 20 Most Carried 20 | 1 7 7 15 20 20 20 20 Average Carried 16 | . 3 7 8 19 19 19 18 Final Capacity 20 | 8 10 10 20 20 20 20 20 Final Carried 20 | 1 7 7 15 20 20 20 20 Scrap Engine Consumption 24 | . . . . . . 3 21 Constructs Created 3 | . . . . . . . 3 Constructs Modified 1 | . . . . . . . 1 Class Distribution -------------------- 67% | Mutant 22% | Scavenger-Mutant 10% | Commander-Mutant Dominant Class ---------------- Mutant | -10/Materials Mutant | -10/Mines Mutant | -9/Materials Scavenger-Mutant | -9/Storage Mutant | -9/Garrison Mutant | -9/Recycling Mutant | -7/Factory Resources | -11 -10 -10 -9 -9 -9 -9 -7 ----------- Run | Jun Mat Min Mat Sto Gar Rec Fac Matter Collected 2556 | 251 183 49 501 696 179 38 659 Remotely . | . . . . . . . . Salvage Created 2838 | . 428 33 529 910 239 . 699 Parts 181 | . 31 5 36 57 11 . 41 Haulers Intercepted 4 | . . . 1 2 . . 1 Recyclers Shooed 6 | . 1 . 2 1 . . 2 Parts Field Recycled . | . . . . . . . . Retrieved Matter . | . . . . . . . . Parts Self-Destructed . | . . . . . . . . Prevented . | . . . . . . . . Kills | -11 -10 -10 -9 -9 -9 -9 -7 ------- Run | Jun Mat Min Mat Sto Gar Rec Fac Combat Hostiles Destroyed 68 | . 12 2 9 17 7 . 21 Guns 41 | . 12 2 9 14 . . 4 Cannons 17 | . . . . 3 7 . 7 AOE 10 | . . . . . . . 10 Classes Destroyed 14 | . 5 . 3 1 . . 5 Worker 3 | . 1 . 1 . . . 1 Builder 3 | . . . . 1 . . 2 Tunneler 1 | . . . . . . . 1 Hauler 4 | . . . 1 2 . . 1 Recycler 5 | . 1 . 1 1 . . 2 Mechanic 1 | . . . . . . . 1 Operator 2 | . 1 . . 1 . . . Swarmer 18 | . 6 2 . 3 1 . 6 Grunt 28 | . 6 . 5 7 3 . 7 Duelist 1 | . . . 1 . . . . Protector 1 | . . . . . . . 1 Sentry 14 | . . . 3 7 3 . 1 Hunter 3 | . . . . . . . 3 Programmer 3 | . . . . . . . 3 Best Kill Streak 7 | . 6 2 3 5 2 . 7 Combat Bots Only 6 | . 2 2 3 4 2 . 6 Max Kills in Single Turn 3 | . 1 2 1 2 1 . 3 Gunslinging 1 | . . 1 . . . . . Exploded 2 | . . . . . . . 2 Melee . | . . . . . . . . Uniques/NPCs Destroyed . | . . . . . . . . Combat | -11 -10 -10 -9 -9 -9 -9 -7 -------- Run | Jun Mat Min Mat Sto Gar Rec Fac Damage Taken 5007 | . 727 64 634 1140 399 15 2028 Core 681 | . 183 15 91 169 76 . 147 Absorbed by Shields 102 | . . . . . . . 102 Regen/Repaired (Parts) 658 | . 170 . . 130 . . 358 Core Remaining (%) 45 | 100 . 20 . . . 16 . Volleys Fired 263 | . 55 4 47 66 26 1 64 Largest 2 | . 2 2 2 2 2 2 2 Hottest 87 | . 40 40 46 78 87 87 87 Shots Fired 494 | . 103 8 85 129 52 2 115 Gun 346 | . 103 8 85 112 . . 38 Cannon 136 | . . . . 17 52 2 65 Launcher 12 | . . . . . . . 12 Special . | . . . . . . . . Kinetic 482 | . 103 8 85 129 52 2 103 Thermal . | . . . . . . . . Explosive 12 | . . . . . . . 12 Electromagnetic . | . . . . . . . . Robot Hit Streak 25 | . 6 3 10 25 5 2 14 Robot Miss Streak 4 | . 3 2 3 2 3 . 4 Penetration Max . | . . . . . . . . Secondary Targets 4 | . 2 1 1 . . . . Max Gunslinging Chain 1 | . 1 1 1 . . . . Shots Hit Robots 332 | . 59 4 63 100 22 2 82 Core Hits 156 | . 27 2 24 33 8 . 62 Critical Kills 1 | . . . . 1 . . . Critical Parts Destroyed 1 | . . . . 1 . . . Critical Strikes 7 | . . . . 2 4 . 1 Destroy 2 | . . . . 2 . . . Blast 5 | . . . . . 4 . 1 Melee Attacks 4 | . . . . . 4 . . Impact . | . . . . . . . . Slashing . | . . . . . . . . Piercing . | . . . . . . . . Sneak Attacks . | . . . . . . . . Combat Hostiles . | . . . . . . . . Follow-up Attacks . | . . . . . . . . Damage Inflicted 6970 | . 661 53 857 1587 507 46 3259 Guns 3425 | . 658 53 857 1377 . . 480 Cannons 1997 | . . . . 209 507 46 1235 Explosions 1544 | . . . . . . . 1544 Melee . | . . . . . . . . Ramming 4 | . 3 . . 1 . . . Kinetic 5422 | . 658 53 857 1586 507 46 1715 Thermal . | . . . . . . . . Explosive 1544 | . . . . . . . 1544 Electromagnetic . | . . . . . . . . Impact . | . . . . . . . . Slashing . | . . . . . . . . Piercing . | . . . . . . . . Highest Corruption 4 | . . . . . . . 4 Average Corruption 1 | . . . . . . . 1 Corruption Purged 4 | . . . . . . . 4 Corruption Blocked . | . . . . . . . . Effects 1 | . . . . . . . 1 Data Loss (minor) 1 | . . . . . . . 1 Overload Shots . | . . . . . . . . Overflow Damage 35 | . . . . . . . 35 Projectiles 21 | . . . . . . . 21 Explosions 14 | . . . . . . . 14 Melee . | . . . . . . . . Knockbacks 17 | . . . . . 6 . 11 Impact . | . . . . . . . . Kinetic 14 | . . . . . 5 . 9 Secondary 3 | . . . . . 1 . 2 Self-Inflicted Damage 254 | . . . . . . . 254 Shots 8 | . . . . . . . 8 Rammed 2 | . 1 . . 1 . . . Targets Rammed 2 | . 1 . . 1 . . . Kicked . | . . . . . . . . Crushed . | . . . . . . . . Highest Temperature 258 | . 28 . . 148 258 21 202 Average Temperature 67 | . 13 . . 38 87 10 76 Received Heat Transfer 1720 | . 177 . 201 489 177 9 667 Siege Activations . | . . . . . . . . Robots Corrupted . | . . . . . . . . Combat Hostiles . | . . . . . . . . Parts Fried . | . . . . . . . . Impact Corruptions . | . . . . . . . . Robots Melted . | . . . . . . . . Combat Hostiles . | . . . . . . . . Parts Melted . | . . . . . . . . Heat Transferred . | . . . . . . . . Parts Sabotaged . | . . . . . . . . Parts Stolen . | . . . . . . . . Parts Stripped . | . . . . . . . . Power Chain Reactions . | . . . . . . . . Missiles Intercepted . | . . . . . . . . Alert | -11 -10 -10 -9 -9 -9 -9 -7 ------- Run | Jun Mat Min Mat Sto Gar Rec Fac Peak Influence 993 | . 263 66 250 203 993 499 460 Initial 446 | . . 16 25 14 87 446 250 Average 207 | . 119 39 75 91 437 259 195 Maximum Alert Level 3 | . 1 . 1 1 3 2 2 Low Security (%) 63 | 100 85 100 87 97 19 43 59 Level 1 20 | . 14 . 12 2 31 18 39 Level 2 12 | . . . . . 32 38 1 Level 3 3 | . . . . . 16 . . Level 4 . | . . . . . . . . Level 5 . | . . . . . . . . High Security . | . . . . . . . . Max Security . | . . . . . . . . Squads Dispatched 12 | . 2 . 1 2 . . 7 Investigation 2 | . 1 . 1 . . . . Extermination 4 | . . . . . . . 4 Reinforcement 5 | . 1 . . 1 . . 3 Assault . | . . . . . . . . Garrison 1 | . . . . 1 . . . Intercept . | . . . . . . . . Searches Triggered . | . . . . . . . . Construction Impeded 1 | . . . . . . . 1 Haulers Reinforced . | . . . . . . . . Active Scanning Responses . | . . . . . . . . Cargo Convoy Interrupts 1 | . . . . . . . 1 Stealth | -11 -10 -10 -9 -9 -9 -9 -7 --------- Run | Jun Mat Min Mat Sto Gar Rec Fac Distress Signals 9 | . 1 . 1 6 . . 1 Communications Jammed . | . . . . . . . . Distress Signals . | . . . . . . . . Times Spotted 147 | . 24 3 16 25 29 2 48 Peak Tracking Total 11 | . 3 3 4 5 5 1 11 Tactical Retreats 2 | . . . . . 2 . . Traps | -11 -10 -10 -9 -9 -9 -9 -7 ------- Run | Jun Mat Min Mat Sto Gar Rec Fac Traps Triggered 7 | . 2 . 1 2 2 . . Indirectly . | . . . . . . . . Trap Hack Attempts 28 | . . . . . 28 . . Triggered 1 | . . . . . 1 . . Disarmed . | . . . . . . . . Reprogrammed 2 | . . . . . 2 . . Reused . | . . . . . . . . Traps Extracted . | . . . . . . . . Installed . | . . . . . . . . Triggered . | . . . . . . . . Machines | -11 -10 -10 -9 -9 -9 -9 -7 ---------- Run | Jun Mat Min Mat Sto Gar Rec Fac Machines Disabled 6 | . 2 . . 1 3 . . Max in Single Turn 2 | . 1 . . 1 2 . . Garrison Relay 1 | . . . . . 1 . . Phase Generator 1 | . . . . . 1 . . Machines Repaired . | . . . . . . . . Machines Sabotaged . | . . . . . . . . Overloaded Fab Kills . | . . . . . . . . Hacking | -11 -10 -10 -9 -9 -9 -9 -7 --------- Run | Jun Mat Min Mat Sto Gar Rec Fac Machines Accessed 34 | . 5 . 3 8 3 7 8 Terminals 25 | . 4 . 3 6 3 3 6 Fabricators 1 | . . . . . . . 1 Repair Stations 3 | . 1 . . 1 . . 1 Recycling Units 4 | . . . . . . 4 . Scanalyzers . | . . . . . . . . Garrison Access 1 | . . . . 1 . . . Total Hacks 87 | . 14 . 13 22 4 11 23 Successful 50 | . 10 . 5 13 2 7 13 Failed 36 | . 3 . 8 9 2 4 10 Catastrophic 8 | . . . . 3 1 . 4 Database Lockouts 1 | . 1 . . . . . . Manual 57 | . 9 . 11 12 2 11 12 Terminals 68 | . 10 . 13 18 4 5 18 Fabricators 3 | . . . . . . . 3 Repair Stations 8 | . 4 . . 2 . . 2 Recycling Units 6 | . . . . . . 6 . Scanalyzers . | . . . . . . . . Garrison Access 2 | . . . . 2 . . . Terminal Hacks 26 | . 4 . 3 8 2 3 6 Part Schematic 2 | . 1 . . . . . 1 Robot Analysis 1 | . 1 . . . . . . Prototype ID Bank 1 | . . . . 1 . . . Open Door 4 | . . . . 3 1 . . Branch Access Points 1 | . . . 1 . . . . Garrison Index 1 | . . . . . . . 1 Alert Level 1 | . . . . 1 . . . Unreport Threat 9 | . . . 1 2 . 3 3 Locate Traps 1 | . . . . 1 . . . Hauler Manifests 2 | . . . 1 . . . 1 Zone Layout 2 | . 2 . . . . . . Garrison Registry 1 | . . . . . 1 . . Fabricator Hacks 2 | . . . . . . . 2 Load Schematic 1 | . . . . . . . 1 Build 1 | . . . . . . . 1 Repair Station Hacks 8 | . 4 . . 2 . . 2 Scan Component 4 | . 2 . . 1 . . 1 Repair 4 | . 2 . . 1 . . 1 Recycling Unit Hacks . | . . . . . . . . Scanalyzer . | . . . . . . . . Garrison Access Hacks 1 | . . . . 1 . . . Unlock Access 1 | . . . . 1 . . . Unauthorized Hacks 13 | . 2 . 2 2 . 4 3 Terminals 9 | . 2 . 2 2 . . 3 Track 1 | . 1 . . . . . . Botnet 6 | . . . 1 2 . . 3 Operators 2 | . 1 . 1 . . . . Fabricators . | . . . . . . . . Repair Stations . | . . . . . . . . Recycling Units 4 | . . . . . . 4 . Tunnel 4 | . . . . . . 4 . Scanalyzers . | . . . . . . . . Garrison Access . | . . . . . . . . Data Cores Recovered . | . . . . . . . . Used . | . . . . . . . . Hacking Detections 24 | . 4 . 3 6 2 2 7 Full Trace Events 1 | . . . . . . 1 . Feedback Events . | . . . . . . . . Feedback Blocked . | . . . . . . . . Robot Schematics Acquired . | . . . . . . . . Robots Built . | . . . . . . . . Authchips . | . . . . . . . . Time . | . . . . . . . . Total Robot Build Rating . | . . . . . . . . Part Schematics Acquired 2 | . 1 . . . . . 1 Parts Built 2 | . . . . . . . 2 Authchips 1 | . . . . . . . 1 Time 42 | . . . . . . . 42 Total Part Build Rating 8 | . . . . . . . 8 Parts Repaired 4 | . 2 . . 1 . . 1 Time 122 | . 52 . . 32 . . 38 Parts Recycled . | . . . . . . . . Recycled Matter . | . . . . . . . . Retrieved Matter . | . . . . . . . . Retrieved Components . | . . . . . . . . Parts Scanalyzed . | . . . . . . . . Part Schematics Acquired . | . . . . . . . . Parts Damaged . | . . . . . . . . Bothacking | -11 -10 -10 -9 -9 -9 -9 -7 ------------ Run | Jun Mat Min Mat Sto Gar Rec Fac Used RIF Installer 2 | . . . . . 2 . . Command Fork 1 | . . . . . 1 . . Robots Hacked 2 | . . . . . 2 . . Non-combat . | . . . . . . . . Combat 2 | . . . . . 2 . . Robot Hacks Applied 2 | . . . . . 2 . . overwrite_iff 1 | . . . . . 1 . . formatsys_high 1 | . . . . . 1 . . Relay Couplers Released 3 | . . . . . 3 . . Machine Destruction 3 | . . . . . 3 . . Attached 2 | . . . . . 2 . . Fabnet Peak Effective % . | . . . . . . . . Robots Rewired . | . . . . . . . . Allies Hacked . | . . . . . . . . Hacks Repelled . | . . . . . . . . Allies | -11 -10 -10 -9 -9 -9 -9 -7 -------- Run | Jun Mat Min Mat Sto Gar Rec Fac Total Allies 13 | . . . . 10 3 . . Largest Group 10 | . . . . 10 7 1 1 Highest-Rated Group 146 | . . . . 88 146 146 146 Highest-Rated Ally 146 | . . . . 16 146 146 146 Total Orders 2 | . . . . . 2 . . STAY 1 | . . . . . 1 . . FOLLOW 1 | . . . . . 1 . . Ally Attacks 143 | . . . . 27 83 7 26 Total Damage 3408 | . . . . 291 1527 381 1209 Kills 47 | . . . . 5 25 4 13 Allies Corrupted . | . . . . . . . . Allies Melted . | . . . . . . . . Intel | -11 -10 -10 -9 -9 -9 -9 -7 ------- Run | Jun Mat Min Mat Sto Gar Rec Fac Robot Analysis Total 1 | . 1 . . . . . . Derelict Logs Recovered . | . . . . . . . . Drone Launches . | . . . . . . . . Drone Recoveries . | . . . . . . . . Exploration | -11 -10 -10 -9 -9 -9 -9 -7 ------------- Run | Jun Mat Min Mat Sto Gar Rec Fac Turns Passed 7114 | 58 905 100 697 1482 1445 1050 1377 Spaces Moved 2658 | 37 422 48 222 459 502 429 539 Core 15 | 15 . . . . . . . Treads 2398 | 22 422 48 210 459 502 429 306 Legs . | . . . . . . . . Wheels 245 | . . . 12 . . . 233 Hover . | . . . . . . . . Flight . | . . . . . . . . Fastest Speed 50 | 50 160 160 140 240 240 240 185 Average Speed 217 | 131 160 160 242 240 240 240 206 Slowest Speed 320 | 200 160 160 320 240 240 240 271 Overloaded Moves . | . . . . . . . . Propulsion Burnouts . | . . . . . . . . Robots Hopped . | . . . . . . . . Cave-ins Triggered . | . . . . . . . . Exploration Rate (%) 42 | 4 59 18 20 79 67 80 15 Regions Visited 7 Branch Regions 3 Pre-discovered Areas 4 | . . . . . . 4 . Known Exits Taken 2 | . . . 1 1 . . . Unknown Exits Taken 4 | 1 1 1 . . . 1 . Scrap Searched . | . . . . . . . . Spaces Dug 12 | . . . . . . . 12 Terrain Destroyed 153 | . . . . . 77 . 76 Melee . | . . . . . . . . Projectile 5 | . . . . . . . 5 AOE 148 | . . . . . 77 . 71 Terrain Rammed . | . . . . . . . . Walls Destroyed . | . . . . . . . . Machines Disabled . | . . . . . . . . Actions | -11 -10 -10 -9 -9 -9 -9 -7 --------- Run | Jun Mat Min Mat Sto Gar Rec Fac Total 3501 | 43 554 63 296 719 688 451 687 Wait 386 | . 64 12 4 135 114 10 47 Move 2652 | 36 421 47 221 459 501 428 539 Hop . | . . . . . . . . Pick Up 49 | . 5 . 9 18 2 4 11 Fast Attach 28 | 6 4 . 6 4 . 1 7 Attach 18 | . 1 . 3 4 . 1 9 Detach 4 | . . . 1 1 . . 2 Swap 23 | 1 3 . 2 11 5 . 1 Drop 38 | . . . 3 20 2 6 7 Fire 263 | . 55 4 47 66 26 1 64 Melee 4 | . . . . . 4 . . Ram . | . . . . . . . . Kick . | . . . . . . . . Crush 2 | . 1 . . 1 . . . Escape Stasis 5 | . . . . . 5 . . Rewire 1 | . . . . . 1 . . Trap 28 | . . . . . 28 . . Miscellaneous . | . . . . . . . . Route ------- -11/Junkyard -10/Materials (discovered 3 exits: *Mat x2 / [*Min]) -10/Mines -9/Materials (discovered 4 exits: *Min x2 / *Sto x2) -9/Storage -9/Garrison (discovered 3 exits: *Rec x3) -9/Recycling -7/Factory (discovered 2 exits: [*Fac] / [*Low]) History --------- Turn | Location | Event 4 | -11/Junkyard | Discovered new exit (range 16) 59 | -11/Junkyard | Entered Materials 210 | -10/Materials | Discovered new exit (range 13) 317 | -10/Materials | Build established: Mutant 371 | -10/Materials | Discovered new exit (range 13) 400 | -10/Materials | Central database locked down 552 | -10/Materials | Repaired Lgt. Treads 580 | -10/Materials | Repaired Assault Rifle 690 | -10/Materials | Core integrity fell below 50% 905 | -10/Materials | Discovered new exit (range 5) 964 | -10/Materials | Entered Mines 1046 | -10/Mines | Discovered new exit (range 12) 1064 | -10/Mines | Entered Materials 1064 | -9/Materials | Evolved 2 slots: Utility x2 1407 | -9/Materials | Discovered new exit (range 15) 1432 | -9/Materials | Identified exit to Mines 1432 | -9/Materials | Identified exit to Storage 1719 | -9/Materials | Build established: Scavenger-Mutant 1761 | -9/Materials | Entered Storage 2256 | -9/Storage | Core integrity fell below 50% 2835 | -9/Storage | Repaired Hrd. Light Armor Plating 3064 | -9/Storage | Assisted by bots powering up and referring to "LRC-V3" 3208 | -9/Storage | Garrison activated, responded to threat 3243 | -9/Storage | Identified exit to Garrison 3243 | -9/Storage | Entered Garrison 3243 | -9/Garrison | Accompanied by 7 allies 3346 | -9/Garrison | Build established: Commander-Mutant 3382 | -9/Garrison | Phase Generator disabled 3498 | -9/Garrison | Triggered checkpoint 3623 | -9/Garrison | Installed Relay Interface Framework 3648 | -9/Garrison | Triggered checkpoint 3812 | -9/Garrison | Triggered checkpoint 3894 | -9/Garrison | Discovered new exit (range 10) 3918 | -9/Garrison | Triggered checkpoint 3973 | -9/Garrison | Discovered new exit (range 25) 3973 | -9/Garrison | Discovered new exit (range 80) 3973 | -9/Garrison | Discovered new exit (range 35) 4000 | -9/Garrison | Garrison Relay disabled 4065 | -9/Garrison | Build established: Mutant 4160 | -9/Garrison | Triggered checkpoint 4216 | -9/Garrison | Triggered checkpoint 4220 | -9/Garrison | Core integrity fell below 20% 4348 | -9/Garrison | Spotted B-75 Beast 4357 | -9/Garrison | Rescued HV-R5K 4427 | -9/Garrison | Allies destroyed B-75 Beast 4518 | -9/Garrison | Triggered checkpoint 4561 | -9/Garrison | Expanded RIF knowledge: Command Fork 4688 | -9/Garrison | Entered Recycling 4688 | -9/Recycling | Accompanied by 1 ally (HV-R5K) 4853 | -9/Recycling | Found Scrap Engine 5500 | -9/Recycling | Discovered new exit (range 16) 5738 | -9/Recycling | Entered Factory 5738 | -7/Factory | Accompanied by 1 ally (HV-R5K) 5738 | -7/Factory | Evolved 4 slots: Utility x4 6229 | -7/Factory | Discovered new exit (range 9) 6589 | -7/Factory | Lost 6 parts (1p1n4u) 6726 | -7/Factory | Repaired Imp. Light Armor Plating? 6757 | -7/Factory | Fabricated Powered Armor (x2) 6912 | -7/Factory | Discovered new exit (range 16) 7101 | -7/Factory | Cargo convoy interrupted 7115 | -7/Factory | Self-destructed Last Messages --------------- 07106_ Destroyed Powered Armor. 07106_ R-06 Scavenger destroyed. 07106_ Lgt. Nuclear Core destroyed. 07106_ Terminal disabled. 07107_ Slug penetrates I-36 Angel. 07107_ Penetrated by Slug. 07108_ Slug penetrates Wall. 07108_ Penetrated by Slug. 07108_ Imp. Shield Generator destroyed. 07108_ Destroyed Lgt. Nuclear Core. 07108_ H-55 Commando destroyed. 07111_ Slug penetrates A-27 Freighter. 07112_ U-05 Engineer destroyed. 07112_ I-36 Angel destroyed. 07112_ ALERT: Construction progress impeded, dispatching reinforcements to local area. 07113_ P-60 Hacker resets U-05 Engineer, system corruption cleaned. 07113_ Prc. Grenade Launcher destroyed. 07114_ Arm. Scrap Engine constructs Thermal Particle Construct/C. 07114_ Penetrated by Slug. Map ----- +----------------------------------------------------+ | % + = / #??????????????????????? | | ######### %##### %# #??????????????????????? | | ????????# %#???# !=# #??????????????????????? | | ???????## #???# ! ## ###########?????????????? | | ???????## %#######+### # """"" #?????????????? | | #########%%# + + """"" #?????????????? | | % # # # """ #?????????????? | | % # # # #?????????????? | | # # # #?????????????? | | # ! # # #?????????????? | | % # # # #?????????????? | | ! # # # #?????????????? | | "" # # Y ###########?????????????? | | "" "" ##+######## # ! #??????????????? | | """ """ # / # Y # #??????????????? | | """ F" # + / !!! #??????????????? | | """ """ # # # !!! #??????????????? | | "" %# # # ! #??????????????? | | # """ # # ! #??????????????? | | # " " """ # A# #??????????????? | | #### ### "R" """ #u # #??????????????? | | ???# #?# """ # u+ #??????????????? | | ???# #?########## u#= ######????????????? | | ???# ########??## |u h #????????????? | | ???# ## #??# *%! % #????????????? | | ??## ###### %@ < x ????????? | | #?# u o!=! % #????????????? | | ### ##### * i #????????????? | | #"# ####### ##### ##+###????????????? | | [ #??######+#### p ????????????????? | | #####??# # """ " /h "??????????????? | | #??????# # """ # ""?????????????? | | #??????# = ""T"" # """ " #? ?????????????? | | ???????# """"" # #?? ????????????? | | ???????########################???####???????????? | | | | | | | | | | | | | | | | | | | | | | | | | | | | | | | +----------------------------------------------------+ Best States ------------- Heat Dissipation 70 Energy Generation 14 Energy Capacity 265 Matter Stores 300 Matter Capacity 300 Sight Range 16 Terrain Scan Density 10 Armor Coverage 675 Evasion (%) 50 Recoil Reduction 2 Offensive Hacking 10 Relay Coupler Types 1 Relay Coupler Value 25 Authchip Count 4 Item Schematics ----------------- Huge Storage Unit | -10/Materials | Hacked Powered Armor | -7/Factory | Hacked Robot Schematics ------------------ None Fabricated ------------ Powered Armor | x2 | -7/Factory | Authchip Alien Tech Used ----------------- None Achievements -------------- None Challenges ------------ None Game ------ Seed DeuteriumIonVibroblade Manual? 0 Play Time 00:42:15 Cumulative 470.2 hours Start 2023.04.29 @ 22:54:17 End 2023.04.30 @ 08:46:28 Sessions 3 Manual Loads 0 Difficulty Rogue Special Mode None Game No. 508 Rogue 499 Adventurer 8 Explorer 1 Win Type - Total 8 Types 5/1/2/0/0/0/0/0/0 Lore% 81 Gallery% 91 Achievement% 71 Wizard Run 0 Options --------- ASCII 0 Keyboard 0 Movement Numpad Keybinds 1 Fullscreen 2 Font 18/Terminus Map View 76x50 Tactical HUD 1 Map Filters NONE Filters NONE Steam 1 RUN: 9a44eae3-de54-4697-b8e9-88e1d72cbb21